[Event "*** Titled Tuesday Blitz"]
[Site "Chess.com"]
[Date "2020.12.01"]
[Round "8"]
[White "Rsnr"]
[Black "ChessWarrior7197"]
[Result "1/2-1/2"]
[WhiteElo "2797"]
[BlackElo "2972"]
[TimeControl "180+1"]
[EndTime "11:28:40 PST"]
[Termination "Game drawn by agreement"]

1. Nf3 {[%clk 0:02:59.4]} 1... d5 {[%clk 0:02:59.4]} 2. d4 {[%clk 0:02:59.6]}
2... Nf6 {[%clk 0:03:00]} 3. c4 {[%clk 0:02:55.1]} 3... e6 {[%clk 0:02:59.9]} 4.
e3 {[%clk 0:02:55.5]} 4... a6 {[%clk 0:02:58.3]} 5. b3 {[%clk 0:02:54.6]} 5...
c5 {[%clk 0:02:57.8]} 6. cxd5 {[%clk 0:02:51.8]} 6... exd5 {[%clk 0:02:57.7]} 7.
Be2 {[%clk 0:02:45.3]} 7... Nc6 {[%clk 0:02:56.4]} 8. O-O {[%clk 0:02:45.2]}
8... cxd4 {[%clk 0:02:56.7]} 9. Nxd4 {[%clk 0:02:46.1]} 9... Bd6 {[%clk
0:02:57.3]} 10. Bb2 {[%clk 0:02:42.6]} 10... O-O {[%clk 0:02:57.6]} 11. Nd2
{[%clk 0:02:38.1]} 11... Bc7 {[%clk 0:02:57.9]} 12. Re1 {[%clk 0:02:31.7]} 12...
Qd6 {[%clk 0:02:57.6]} 13. Nf1 {[%clk 0:02:32.1]} 13... Bd7 {[%clk 0:02:52.9]}
14. Rc1 {[%clk 0:02:31]} 14... Rfe8 {[%clk 0:02:52.9]} 15. Nxc6 {[%clk
0:02:10.5]} 15... bxc6 {[%clk 0:02:49]} 16. Qd4 {[%clk 0:02:10.2]} 16... a5
{[%clk 0:02:19.3]} 17. Red1 {[%clk 0:01:51.7]} 17... a4 {[%clk 0:02:18.2]} 18.
Bf3 {[%clk 0:01:47.3]} 18... axb3 {[%clk 0:02:16.4]} 19. axb3 {[%clk 0:01:48.2]}
19... Reb8 {[%clk 0:02:16.5]} 20. Qc3 {[%clk 0:01:32.1]} 20... Ra2 {[%clk
0:02:07.4]} 21. e4 {[%clk 0:01:15.9]} 21... Ba5 {[%clk 0:01:58.9]} 22. Qc2
{[%clk 0:01:16.1]} 22... Qb4 {[%clk 0:01:51.4]} 23. exd5 {[%clk 0:01:09]} 23...
cxd5 {[%clk 0:01:47.2]} 24. Qb1 {[%clk 0:00:44.3]} 24... Qxb3 {[%clk 0:01:32.8]}
25. Bxf6 {[%clk 0:00:44.7]} 25... Qxb1 {[%clk 0:01:21.4]} 26. Rxb1 {[%clk
0:00:45.6]} 26... Rxb1 {[%clk 0:01:22]} 27. Rxb1 {[%clk 0:00:46.5]} 27... gxf6
{[%clk 0:01:22.6]} 28. Bxd5 {[%clk 0:00:47.2]} 28... Ra3 {[%clk 0:01:18.9]} 29.
Ne3 {[%clk 0:00:46.6]} 29... Be6 {[%clk 0:01:18.3]} 30. Nc4 {[%clk 0:00:30]}
30... Ra4 {[%clk 0:01:05.2]} 31. Bxe6 {[%clk 0:00:30.5]} 31... fxe6 {[%clk
0:01:05.6]} 32. Nxa5 {[%clk 0:00:30.5]} 32... Rxa5 {[%clk 0:01:06.5]} 33. g3
{[%clk 0:00:30.3]} 33... Kf7 {[%clk 0:01:06.3]} 34. Rb7+ {[%clk 0:00:30.3]}
34... Kg6 {[%clk 0:01:06.3]} 35. Re7 {[%clk 0:00:29.3]} 35... e5 {[%clk
0:01:05.8]} 36. Kg2 {[%clk 0:00:29.7]} 36... Ra2 {[%clk 0:01:06.3]} 37. h4
{[%clk 0:00:30]} 37... h5 {[%clk 0:01:06.8]} 38. Kf3 {[%clk 0:00:27.3]} 38...
Kf5 {[%clk 0:01:06.5]} 39. Re8 {[%clk 0:00:19.2]} 39... Ra3+ {[%clk 0:01:05.1]}
40. Kg2 {[%clk 0:00:19.7]} 40... Ra2 {[%clk 0:00:59.1]} 41. Kf3 {[%clk
0:00:19.1]} 41... Rb2 {[%clk 0:00:58.7]} 42. Re7 {[%clk 0:00:18.7]} 42... Kg6
{[%clk 0:00:58.9]} 43. Re8 {[%clk 0:00:18.2]} 43... Rb5 {[%clk 0:00:59]} 44.
Rg8+ {[%clk 0:00:16.1]} 44... Kh7 {[%clk 0:00:58.9]} 45. Re8 {[%clk 0:00:14]}
45... Kg7 {[%clk 0:00:58.5]} 46. Re7+ {[%clk 0:00:14]} 46... Kg6 {[%clk
0:00:58.6]} 47. Re8 {[%clk 0:00:14.6]} 47... f5 {[%clk 0:00:59]} 48. Re6+ {[%clk
0:00:13.9]} 48... Kg7 {[%clk 0:00:57.8]} 49. Ra6 {[%clk 0:00:13.8]} 49... Rb3+
{[%clk 0:00:56.2]} 50. Ke2 {[%clk 0:00:13.9]} 50... Rb2+ {[%clk 0:00:54.2]} 51.
Kf3 {[%clk 0:00:14.1]} 51... e4+ {[%clk 0:00:53.1]} 52. Ke3 {[%clk 0:00:11.7]}
52... Rb3+ {[%clk 0:00:53.3]} 53. Ke2 {[%clk 0:00:07.5]} 53... f4 {[%clk
0:00:53.4]} 54. gxf4 {[%clk 0:00:05]} 54... Rf3 {[%clk 0:00:52.1]} 55. Ra5
{[%clk 0:00:04.4]} 55... Kh6 {[%clk 0:00:48.7]} 56. Rf5 {[%clk 0:00:04.5]} 56...
Rh3 {[%clk 0:00:47.4]} 57. Re5 {[%clk 0:00:03.3]} 57... Rxh4 {[%clk 0:00:46.5]}
58. Re6+ {[%clk 0:00:03.1]} 58... Kg7 {[%clk 0:00:46]} 59. Rxe4 {[%clk 0:00:04]}
59... Rh3 {[%clk 0:00:44.3]} 60. Kf1 {[%clk 0:00:04]} 60... Kf6 {[%clk
0:00:44.6]} 61. Kg2 {[%clk 0:00:04.4]} 61... Rb3 {[%clk 0:00:44.9]} 62. Re5
{[%clk 0:00:05]} 62... Kg6 {[%clk 0:00:44.9]} 63. Rg5+ {[%clk 0:00:05.5]} 63...
Kh6 {[%clk 0:00:45.2]} 64. f3 {[%clk 0:00:06.2]} 64... Rb2+ {[%clk 0:00:41.6]}
65. Kg3 {[%clk 0:00:06.7]} 65... Rb1 {[%clk 0:00:42.5]} 66. Ra5 {[%clk
0:00:06.7]} 66... Rg1+ {[%clk 0:00:41.8]} 67. Kh2 {[%clk 0:00:05.6]} 67... Rf1
{[%clk 0:00:41.1]} 68. Kg2 {[%clk 0:00:05.7]} 68... Rc1 {[%clk 0:00:40.7]} 69.
Ra6+ {[%clk 0:00:06.1]} 69... Kg7 {[%clk 0:00:40.7]} 70. Kg3 {[%clk 0:00:07]}
70... Rc4 {[%clk 0:00:36]} 71. f5 {[%clk 0:00:05.4]} 71... h4+ {[%clk
0:00:36.2]} 72. Kh3 {[%clk 0:00:05.7]} 72... Rf4 {[%clk 0:00:37.1]} 73. Rg6+
{[%clk 0:00:04.6]} 73... Kf7 {[%clk 0:00:37.5]} 74. Rg4 {[%clk 0:00:05.5]} 74...
Rxf3+ {[%clk 0:00:37.9]} 75. Kxh4 {[%clk 0:00:06.2]} 75... Rxf5 {[%clk
0:00:38.8]} 76. Rg5 {[%clk 0:00:06.7]} 76... Rf1 {[%clk 0:00:38.9]} 77. Rg4
{[%clk 0:00:07.1]} 77... Kf6 {[%clk 0:00:39.3]} 78. Kg3 {[%clk 0:00:07.7]} 78...
Kf5 {[%clk 0:00:39]} 79. Ra4 {[%clk 0:00:08.4]} 79... Rb1 {[%clk 0:00:38.4]} 80.
Kf3 {[%clk 0:00:08.7]} 80... Rb3+ {[%clk 0:00:37.4]} 81. Ke2 {[%clk 0:00:09.2]}
81... Ke5 {[%clk 0:00:38.3]} 82. Ra5+ {[%clk 0:00:09.5]} 82... Kd4 {[%clk
0:00:38.4]} 83. Ra4+ {[%clk 0:00:10.1]} 83... Kc3 {[%clk 0:00:39.3]} 84. Rf4
{[%clk 0:00:09.9]} 84... Rb2+ {[%clk 0:00:39.4]} 85. Kf3 {[%clk 0:00:10.8]}
85... Rb1 {[%clk 0:00:39.7]} 86. Kg4 {[%clk 0:00:11.4]} 86... Rg1+ {[%clk
0:00:39.1]} 87. Kf5 {[%clk 0:00:11.6]} 87... Kd3 {[%clk 0:00:40]} 88. Rg4 {[%clk
0:00:12.1]} 88... Rf1+ {[%clk 0:00:39.9]} 89. Ke5 {[%clk 0:00:12.4]} 89... Ra1
{[%clk 0:00:40.8]} 90. Rd4+ {[%clk 0:00:12.3]} 90... Kc3 {[%clk 0:00:40.2]} 91.
Rd5 {[%clk 0:00:12.8]} 91... Re1+ {[%clk 0:00:39.8]} 92. Kd6 {[%clk 0:00:13]}
92... Kc4 {[%clk 0:00:40.7]} 93. Re5 {[%clk 0:00:13.5]} 93... Rd1+ {[%clk
0:00:40.6]} 94. Ke6 {[%clk 0:00:14.1]} 1/2-1/2

[Event "*** Titled Tuesday Blitz"]
[Site "Chess.com"]
[Date "2020.12.01"]
[Round "8"]
[White "FairChess_on_YouTube"]
[Black "rasmussvane"]
[Result "0-1"]
[WhiteElo "2996"]
[BlackElo "2906"]
[TimeControl "180+1"]
[EndTime "11:28:49 PST"]
[Termination "rasmussvane won on time"]

1. e4 {[%clk 0:03:00.9]} 1... c6 {[%clk 0:02:59.2]} 2. Nf3 {[%clk 0:03:00.1]}
2... d5 {[%clk 0:03:00.1]} 3. d3 {[%clk 0:03:00.6]} 3... dxe4 {[%clk 0:02:57.7]}
4. dxe4 {[%clk 0:03:01.5]} 4... Qxd1+ {[%clk 0:02:58.4]} 5. Kxd1 {[%clk
0:03:02.3]} 5... Nf6 {[%clk 0:02:59.3]} 6. Nfd2 {[%clk 0:03:01.6]} 6... h5
{[%clk 0:02:59.4]} 7. f3 {[%clk 0:02:57.9]} 7... g5 {[%clk 0:02:59.1]} 8. a4
{[%clk 0:02:58.5]} 8... g4 {[%clk 0:02:58.3]} 9. a5 {[%clk 0:02:54.1]} 9... Bh6
{[%clk 0:02:55.4]} 10. Nb3 {[%clk 0:02:48.5]} 10... Bxc1 {[%clk 0:02:46.8]} 11.
Kxc1 {[%clk 0:02:49.4]} 11... h4 {[%clk 0:02:34.7]} 12. Ra4 {[%clk 0:02:21]}
12... Rh5 {[%clk 0:01:54.8]} 13. f4 {[%clk 0:02:14.1]} 13... e5 {[%clk
0:01:53.9]} 14. f5 {[%clk 0:02:12.4]} 14... Nbd7 {[%clk 0:01:47.3]} 15. N1d2
{[%clk 0:02:11.7]} 15... Rb8 {[%clk 0:01:39.5]} 16. Be2 {[%clk 0:02:10.9]} 16...
Rg5 {[%clk 0:01:31.2]} 17. Rd1 {[%clk 0:02:07.2]} 17... Ke7 {[%clk 0:01:29.3]}
18. c3 {[%clk 0:01:50.9]} 18... Ne8 {[%clk 0:01:08.4]} 19. Nc4 {[%clk 0:01:43]}
19... b5 {[%clk 0:00:41.7]} 20. axb6 {[%clk 0:01:41]} 20... axb6 {[%clk
0:00:42.6]} 21. Ra7 {[%clk 0:01:31.3]} 21... Rb7 {[%clk 0:00:42.7]} 22. Rxb7
{[%clk 0:00:59.3]} 22... Bxb7 {[%clk 0:00:42.3]} 23. Bxg4 {[%clk 0:00:59.8]}
23... c5 {[%clk 0:00:33.5]} 24. Bf3 {[%clk 0:00:51.1]} 24... b5 {[%clk
0:00:30.7]} 25. Rxd7+ {[%clk 0:00:44.9]} 25... Kxd7 {[%clk 0:00:31.6]} 26. Nxe5+
{[%clk 0:00:34.8]} 26... Ke7 {[%clk 0:00:31.4]} 27. Nxc5 {[%clk 0:00:34.7]}
27... Ba8 {[%clk 0:00:30.1]} 28. Ned3 {[%clk 0:00:26.4]} 28... Kd8 {[%clk
0:00:14.9]} 29. Kd2 {[%clk 0:00:24.1]} 29... Nd6 {[%clk 0:00:14.9]} 30. Ke3
{[%clk 0:00:24.2]} 30... Nc4+ {[%clk 0:00:13.8]} 31. Kf4 {[%clk 0:00:24.2]}
31... Rg8 {[%clk 0:00:14.4]} 32. Ne5 {[%clk 0:00:22.4]} 32... Ke7 {[%clk
0:00:12.4]} 33. Nxc4 {[%clk 0:00:13.7]} 33... bxc4 {[%clk 0:00:13.3]} 34. b4
{[%clk 0:00:12.4]} 34... cxb3 {[%clk 0:00:13.2]} 35. Nxb3 {[%clk 0:00:12.4]}
35... Rc8 {[%clk 0:00:13.7]} 36. Nd4 {[%clk 0:00:12.1]} 36... Rxc3 {[%clk
0:00:12.7]} 37. e5 {[%clk 0:00:12.6]} 37... Bxf3 {[%clk 0:00:12.2]} 38. f6+
{[%clk 0:00:12.8]} 38... Kd7 {[%clk 0:00:11]} 39. Nxf3 {[%clk 0:00:13.3]} 39...
Rc4+ {[%clk 0:00:07.7]} 40. Kf5 {[%clk 0:00:13.3]} 40... Ra4 {[%clk 0:00:06.7]}
41. Kg5 {[%clk 0:00:09]} 41... Ke6 {[%clk 0:00:05.1]} 42. h3 {[%clk 0:00:04.6]}
42... Rb4 {[%clk 0:00:04.4]} 43. Nxh4 {[%clk 0:00:03.7]} 43... Kxe5 {[%clk
0:00:05.3]} 44. Nf3+ {[%clk 0:00:03.8]} 44... Ke6 {[%clk 0:00:05.8]} 45. g4
{[%clk 0:00:04.1]} 45... Rb5+ {[%clk 0:00:06.2]} 46. Kh6 {[%clk 0:00:04.5]}
46... Kxf6 {[%clk 0:00:07.1]} 47. h4 {[%clk 0:00:04.6]} 47... Rb3 {[%clk
0:00:06.9]} 48. Ng5 {[%clk 0:00:03.9]} 48... Rb4 {[%clk 0:00:05.3]} 49. Kh5
{[%clk 0:00:03.8]} 49... Kg7 {[%clk 0:00:05.6]} 50. Nf3 {[%clk 0:00:03.1]} 50...
Rb3 {[%clk 0:00:05.9]} 51. Ng5 {[%clk 0:00:01.6]} 51... Rb6 {[%clk 0:00:04.2]}
52. Nf3 {[%clk 0:00:01.7]} 52... Rh6+ {[%clk 0:00:04.4]} 53. Kg5 {[%clk
0:00:01.8]} 53... f6+ {[%clk 0:00:05.3]} 54. Kf4 {[%clk 0:00:02.2]} 54... Rh8
{[%clk 0:00:05.8]} 55. h5 {[%clk 0:00:02.6]} 55... Rb8 {[%clk 0:00:05.7]} 56.
Nh4 {[%clk 0:00:03.1]} 56... Rb4+ {[%clk 0:00:06]} 57. Kg3 {[%clk 0:00:03.7]}
57... Kh6 {[%clk 0:00:05.9]} 58. Nf3 {[%clk 0:00:03.5]} 58... Ra4 {[%clk
0:00:06.1]} 59. Kh3 {[%clk 0:00:03.4]} 59... Rc4 {[%clk 0:00:06.2]} 60. Kg3
{[%clk 0:00:03.7]} 60... Rb4 {[%clk 0:00:06.5]} 61. Nh4 {[%clk 0:00:03.7]} 61...
Ra4 {[%clk 0:00:05.5]} 62. Nf3 {[%clk 0:00:04.1]} 62... f5 {[%clk 0:00:05.8]}
63. gxf5 {[%clk 0:00:04]} 63... Kxh5 {[%clk 0:00:06.7]} 64. f6 {[%clk
0:00:03.9]} 64... Kg6 {[%clk 0:00:06.7]} 65. f7 {[%clk 0:00:04]} 65... Kxf7
{[%clk 0:00:06.9]} 66. Ne5+ {[%clk 0:00:04.5]} 66... Ke6 {[%clk 0:00:07.4]} 67.
Ng4 {[%clk 0:00:04.7]} 67... Kf5 {[%clk 0:00:07.4]} 68. Ne3+ {[%clk 0:00:04.8]}
68... Ke4 {[%clk 0:00:07.7]} 69. Ng4 {[%clk 0:00:05.2]} 69... Ra3+ {[%clk
0:00:08.3]} 70. Kg2 {[%clk 0:00:04.8]} 70... Kf4 {[%clk 0:00:08.3]} 71. Nf2
{[%clk 0:00:05.3]} 71... Ra2 {[%clk 0:00:08.9]} 72. Kg1 {[%clk 0:00:04.8]} 72...
Kf3 {[%clk 0:00:08.6]} 73. Nd3 {[%clk 0:00:03.7]} 73... Ke2 {[%clk 0:00:04.4]}
74. Nf4+ {[%clk 0:00:03.5]} 74... Ke3 {[%clk 0:00:04.7]} 75. Ng2+ {[%clk
0:00:03.3]} 75... Kf3 {[%clk 0:00:05]} 76. Nh4+ {[%clk 0:00:03.8]} 76... Kg3
{[%clk 0:00:03]} 77. Nf5+ {[%clk 0:00:03.8]} 77... Kf4 {[%clk 0:00:03.4]} 78.
Nd4 {[%clk 0:00:03.4]} 78... Rd2 {[%clk 0:00:02.7]} 79. Ne6+ {[%clk 0:00:02.6]}
79... Kf5 {[%clk 0:00:02.6]} 80. Nc5 {[%clk 0:00:02.9]} 80... Rd5 {[%clk
0:00:03]} 81. Nb3 {[%clk 0:00:02.6]} 81... Rd3 {[%clk 0:00:03.5]} 82. Na5 {[%clk
0:00:01]} 82... Rc3 {[%clk 0:00:03.5]} 0-1

[Event "*** Titled Tuesday Blitz"]
[Site "Chess.com"]
[Date "2020.12.01"]
[Round "8"]
[White "LionTheLeon_06"]
[Black "theturtlemoves"]
[Result "0-1"]
[WhiteElo "2604"]
[BlackElo "2418"]
[TimeControl "180+1"]
[EndTime "11:28:50 PST"]
[Termination "theturtlemoves won on time"]

1. c4 {[%clk 0:03:00.9]} 1... e5 {[%clk 0:02:59.7]} 2. Nc3 {[%clk 0:03:00.3]}
2... Nf6 {[%clk 0:02:59.9]} 3. g3 {[%clk 0:03:00.3]} 3... d5 {[%clk 0:02:59.8]}
4. cxd5 {[%clk 0:02:59.2]} 4... Nxd5 {[%clk 0:03:00.7]} 5. Bg2 {[%clk
0:02:58.8]} 5... Nb6 {[%clk 0:03:01.2]} 6. Nf3 {[%clk 0:02:58.1]} 6... Nc6
{[%clk 0:03:00.9]} 7. O-O {[%clk 0:02:58.2]} 7... Be7 {[%clk 0:03:00.8]} 8. d3
{[%clk 0:02:58.6]} 8... O-O {[%clk 0:03:00.7]} 9. Be3 {[%clk 0:02:55.2]} 9...
Re8 {[%clk 0:02:58.4]} 10. Rc1 {[%clk 0:02:44.7]} 10... Bf8 {[%clk 0:02:48.4]}
11. Nd2 {[%clk 0:02:42.9]} 11... Nd4 {[%clk 0:02:42.3]} 12. Nb3 {[%clk
0:02:27.9]} 12... Nxb3 {[%clk 0:02:28.9]} 13. Qxb3 {[%clk 0:02:26.6]} 13... c6
{[%clk 0:02:22.3]} 14. Ne4 {[%clk 0:02:14.2]} 14... Be6 {[%clk 0:02:15.2]} 15.
Qc2 {[%clk 0:02:13.4]} 15... Nd5 {[%clk 0:01:56.2]} 16. Bc5 {[%clk 0:02:13.2]}
16... Nb4 {[%clk 0:01:47.3]} 17. Bxb4 {[%clk 0:02:01.5]} 17... Bxb4 {[%clk
0:01:46.4]} 18. a3 {[%clk 0:02:02.1]} 18... Bf8 {[%clk 0:01:44.2]} 19. Nc5
{[%clk 0:02:02.1]} 19... Qb6 {[%clk 0:01:02.3]} 20. Nxe6 {[%clk 0:01:57.7]}
20... Rxe6 {[%clk 0:01:03.2]} 21. Bf3 {[%clk 0:01:49.8]} 21... a5 {[%clk
0:01:00.4]} 22. Qa4 {[%clk 0:01:46.2]} 22... Rd8 {[%clk 0:00:53.7]} 23. Kg2
{[%clk 0:01:35.6]} 23... Rd4 {[%clk 0:00:51.1]} 24. Qc2 {[%clk 0:01:34.5]} 24...
Qd8 {[%clk 0:00:45.2]} 25. Rfd1 {[%clk 0:01:26.3]} 25... Rh6 {[%clk 0:00:39.9]}
26. e3 {[%clk 0:01:11.6]} 26... Rdd6 {[%clk 0:00:36.7]} 27. Kg1 {[%clk
0:00:54.7]} 27... Kh8 {[%clk 0:00:26.3]} 28. Rb1 {[%clk 0:00:53.4]} 28... Qd7
{[%clk 0:00:22.1]} 29. Bg2 {[%clk 0:00:52.6]} 29... f5 {[%clk 0:00:16.6]} 30. b4
{[%clk 0:00:51.5]} 30... axb4 {[%clk 0:00:16.1]} 31. axb4 {[%clk 0:00:52.4]}
31... f4 {[%clk 0:00:13.5]} 32. exf4 {[%clk 0:00:50.5]} 32... exf4 {[%clk
0:00:13.2]} 33. b5 {[%clk 0:00:42.6]} 33... f3 {[%clk 0:00:10.6]} 34. Bxf3
{[%clk 0:00:26.3]} 34... Qh3 {[%clk 0:00:10.1]} 35. bxc6 {[%clk 0:00:23.8]}
35... Qxh2+ {[%clk 0:00:09.9]} 36. Kf1 {[%clk 0:00:24.2]} 36... bxc6 {[%clk
0:00:08.7]} 37. Rb8 {[%clk 0:00:21.2]} 37... Rhf6 {[%clk 0:00:08.6]} 38. Qe2
{[%clk 0:00:17.6]} 38... Qh3+ {[%clk 0:00:04.6]} 39. Kg1 {[%clk 0:00:15]} 39...
Qf5 {[%clk 0:00:04.3]} 40. Be4 {[%clk 0:00:13.9]} 40... Qc5 {[%clk 0:00:03.7]}
41. Kg2 {[%clk 0:00:13.7]} 41... Rde6 {[%clk 0:00:03.5]} 42. Rh1 {[%clk
0:00:12.9]} 42... h6 {[%clk 0:00:02.8]} 43. Rf1 {[%clk 0:00:13]} 43... Qd6
{[%clk 0:00:03.2]} 44. Ra8 {[%clk 0:00:12.2]} 44... Re5 {[%clk 0:00:03.7]} 45.
Qg4 {[%clk 0:00:12.2]} 45... Rg5 {[%clk 0:00:03.9]} 46. Qh3 {[%clk 0:00:12.4]}
46... Qe7 {[%clk 0:00:03.6]} 47. Rc8 {[%clk 0:00:11]} 47... Qf7 {[%clk
0:00:03.7]} 48. Rxc6 {[%clk 0:00:07.3]} 48... Bc5 {[%clk 0:00:03.9]} 49. Rxf6
{[%clk 0:00:07]} 49... Qxf6 {[%clk 0:00:04.2]} 50. Qc8+ {[%clk 0:00:07.7]} 50...
Bf8 {[%clk 0:00:04.5]} 51. Qc6 {[%clk 0:00:07.2]} 51... Qd4 {[%clk 0:00:03.8]}
52. Qd5 {[%clk 0:00:06.5]} 52... Qxd5 {[%clk 0:00:03.6]} 53. Bxd5 {[%clk
0:00:06.5]} 53... Rxd5 {[%clk 0:00:04.5]} 54. Rd1 {[%clk 0:00:07.2]} 54... Rd8
{[%clk 0:00:04.7]} 55. Kf3 {[%clk 0:00:07.5]} 55... Bd6 {[%clk 0:00:05.6]} 56.
Ke4 {[%clk 0:00:07.7]} 56... g6 {[%clk 0:00:06.5]} 57. f4 {[%clk 0:00:07.8]}
57... Kg7 {[%clk 0:00:07.4]} 58. d4 {[%clk 0:00:08.4]} 58... Kf6 {[%clk
0:00:07.7]} 59. Rb1 {[%clk 0:00:08.5]} 59... Be7 {[%clk 0:00:07.8]} 60. Rb6+
{[%clk 0:00:08.5]} 60... Rd6 {[%clk 0:00:07.2]} 61. Rb7 {[%clk 0:00:09.1]} 61...
Re6+ {[%clk 0:00:07.3]} 62. Kd3 {[%clk 0:00:08.7]} 62... h5 {[%clk 0:00:07.7]}
63. d5 {[%clk 0:00:08.5]} 63... Ra6 {[%clk 0:00:07.6]} 64. Kc4 {[%clk 0:00:06]}
64... Ra4+ {[%clk 0:00:06.5]} 65. Kd3 {[%clk 0:00:04]} 65... Ra3+ {[%clk
0:00:06.6]} 66. Ke4 {[%clk 0:00:04.4]} 66... Rxg3 {[%clk 0:00:06.5]} 67. Rb6+
{[%clk 0:00:04.8]} 67... Kf7 {[%clk 0:00:06]} 68. d6 {[%clk 0:00:04.7]} 68...
Bf6 {[%clk 0:00:05.9]} 69. Kd5 {[%clk 0:00:03.8]} 69... Rd3+ {[%clk 0:00:05.6]}
70. Kc6 {[%clk 0:00:04.3]} 70... h4 {[%clk 0:00:04.1]} 71. Rb8 {[%clk
0:00:02.2]} 71... h3 {[%clk 0:00:03.9]} 72. Rb1 {[%clk 0:00:01.5]} 72... Ke6
{[%clk 0:00:03.9]} 73. Re1+ {[%clk 0:00:01.5]} 73... Kf5 {[%clk 0:00:04.2]} 74.
Rh1 {[%clk 0:00:02.4]} 74... Kxf4 {[%clk 0:00:03.5]} 75. d7 {[%clk 0:00:03]}
75... Kg3 {[%clk 0:00:02.7]} 76. Rf1 {[%clk 0:00:02.8]} 76... Bh4 {[%clk
0:00:01.8]} 0-1

[Event "*** Titled Tuesday Blitz"]
[Site "Chess.com"]
[Date "2020.12.01"]
[Round "9"]
[White "fyall777"]
[Black "Anna_ChessMate"]
[Result "0-1"]
[WhiteElo "2311"]
[BlackElo "2581"]
[TimeControl "180+1"]
[EndTime "11:38:54 PST"]
[Termination "Anna_ChessMate won by resignation"]

1. e4 {[%clk 0:03:00.9]} 1... c6 {[%clk 0:03:00]} 2. d4 {[%clk 0:02:59.9]} 2...
d5 {[%clk 0:02:59.6]} 3. e5 {[%clk 0:03:00.4]} 3... Bf5 {[%clk 0:02:58.5]} 4.
Be3 {[%clk 0:03:00.8]} 4... e6 {[%clk 0:02:57.1]} 5. c4 {[%clk 0:03:00.1]} 5...
Ne7 {[%clk 0:02:55.2]} 6. Nc3 {[%clk 0:02:59.5]} 6... Nd7 {[%clk 0:02:53]} 7.
Nf3 {[%clk 0:02:56.5]} 7... dxc4 {[%clk 0:02:50.5]} 8. Bxc4 {[%clk 0:02:55.7]}
8... Nb6 {[%clk 0:02:51.1]} 9. Bd3 {[%clk 0:02:51.5]} 9... Nbd5 {[%clk
0:02:50.8]} 10. O-O {[%clk 0:02:47.3]} 10... Bxd3 {[%clk 0:02:49.2]} 11. Qxd3
{[%clk 0:02:46.8]} 11... Nf5 {[%clk 0:02:49.8]} 12. g4 {[%clk 0:02:40.4]} 12...
Nh4 {[%clk 0:02:42.5]} 13. Ng5 {[%clk 0:02:20.6]} 13... Nxe3 {[%clk 0:02:34.4]}
14. Nxf7 {[%clk 0:01:58.2]} 14... Nf3+ {[%clk 0:02:33.5]} 15. Kh1 {[%clk
0:01:57.7]} 15... Qh4 {[%clk 0:02:33.3]} 0-1

[Event "*** Titled Tuesday Blitz"]
[Site "Chess.com"]
[Date "2020.12.01"]
[Round "9"]
[White "MikeSailer"]
[Black "KventinKarantino"]
[Result "1-0"]
[WhiteElo "2164"]
[BlackElo "2283"]
[TimeControl "180+1"]
[EndTime "11:39:50 PST"]
[Termination "MikeSailer won by resignation"]

1. d4 {[%clk 0:02:27.9]} 1... d5 {[%clk 0:02:59.7]} 2. Nf3 {[%clk 0:02:28.2]}
2... Nf6 {[%clk 0:02:59.4]} 3. Bf4 {[%clk 0:02:28.3]} 3... c5 {[%clk 0:02:59.7]}
4. e3 {[%clk 0:02:28.8]} 4... Nc6 {[%clk 0:02:59.8]} 5. Nc3 {[%clk 0:02:29.4]}
5... e6 {[%clk 0:02:55.1]} 6. Nb5 {[%clk 0:02:27.7]} 6... e5 {[%clk 0:02:49.6]}
7. dxe5 {[%clk 0:02:27.5]} 7... Ne4 {[%clk 0:02:49.3]} 8. e6 {[%clk 0:02:25.2]}
8... Bd6 {[%clk 0:02:41.6]} 9. exf7+ {[%clk 0:02:25.1]} 9... Kxf7 {[%clk
0:02:41.5]} 10. Qxd5+ {[%clk 0:02:22.4]} 10... Be6 {[%clk 0:02:40]} 11. Nxd6+
{[%clk 0:02:21.5]} 11... Nxd6 {[%clk 0:02:36.6]} 12. Qxd6 {[%clk 0:02:19.9]}
12... Qa5+ {[%clk 0:02:36.5]} 13. Qd2 {[%clk 0:02:10]} 13... Nb4 {[%clk
0:02:35.8]} 14. Ng5+ {[%clk 0:01:45]} 14... Kf6 {[%clk 0:02:35.4]} 15. Qc3+
{[%clk 0:01:36.8]} 15... Kg6 {[%clk 0:02:18.4]} 16. Bd3+ {[%clk 0:01:28.3]}
16... Nxd3+ {[%clk 0:02:10.3]} 17. cxd3 {[%clk 0:01:27.2]} 1-0

[Event "*** Titled Tuesday Blitz"]
[Site "Chess.com"]
[Date "2020.12.01"]
[Round "9"]
[White "xamax2000"]
[Black "Rital44"]
[Result "1-0"]
[WhiteElo "2656"]
[BlackElo "2464"]
[TimeControl "180+1"]
[EndTime "11:40:03 PST"]
[Termination "xamax2000 won by resignation"]

1. d4 {[%clk 0:02:57.6]} 1... Nf6 {[%clk 0:02:56]} 2. c4 {[%clk 0:02:51.8]} 2...
g6 {[%clk 0:02:55.6]} 3. Nc3 {[%clk 0:02:48.4]} 3... Bg7 {[%clk 0:02:55.9]} 4.
e4 {[%clk 0:02:48]} 4... d6 {[%clk 0:02:56.5]} 5. Be2 {[%clk 0:02:37.8]} 5...
O-O {[%clk 0:02:53.5]} 6. Be3 {[%clk 0:02:38.4]} 6... Na6 {[%clk 0:02:52.8]} 7.
h3 {[%clk 0:02:29.6]} 7... e5 {[%clk 0:02:52.2]} 8. d5 {[%clk 0:02:29.5]} 8...
Nc5 {[%clk 0:02:51.3]} 9. Qc2 {[%clk 0:02:28.9]} 9... a5 {[%clk 0:02:48.3]} 10.
O-O-O {[%clk 0:02:28.5]} 10... c6 {[%clk 0:02:44.2]} 11. dxc6 {[%clk 0:02:22.7]}
11... Qb6 {[%clk 0:02:42.5]} 12. Rxd6 {[%clk 0:02:04.5]} 12... bxc6 {[%clk
0:02:36]} 13. Na4 {[%clk 0:01:59.9]} 13... Nxa4 {[%clk 0:02:24.1]} 14. Bxb6
{[%clk 0:01:59]} 14... Nxb6 {[%clk 0:02:25]} 15. Rxc6 {[%clk 0:01:59.3]} 15...
Nbd7 {[%clk 0:02:15.4]} 16. Bf3 {[%clk 0:01:38.9]} 16... a4 {[%clk 0:02:03.5]}
17. Ne2 {[%clk 0:01:38.2]} 17... a3 {[%clk 0:01:53.9]} 18. b4 {[%clk 0:01:35.1]}
18... Nb6 {[%clk 0:01:43.9]} 1-0